fUSD/lending_fUSD_20240104
["ID","MTS","AMOUNT","RATE_DAILY","PERIOD"]
[310221733,1704402717249,-3878.50661028,0.000362,2]
[310221734,1704402717262,-1121.49338972,0.000362,2]
[310221735,1704402717272,-3723.01014432,0.00036225,2]
[310221736,1704402717295,-236.10128445,0.00034,2]
[310221737,1704402717305,-1276.98985568,0.00036225,2]
[310221738,1704402717315,-151.34491591,0.00036233,14]
[310221739,1704402717324,-150.0,0.00036243,2]
[310221740,1704402717334,-2562.96221746,0.0003625,2]
[310221741,1704402717421,-660.19411252,0.0003625,2]
[310221742,1704402717436,-485.305,0.0003625,2]
[310221743,1704402717448,-1291.53867002,0.0003625,2]
[310221744,1704402717457,-868.46132998,0.00036275,2]
[310221745,1704402717469,-1596.9,0.00036275,2]
[310221746,1704402717481,-2534.63867002,0.00036275,2]
[310221747,1704402717490,-163.66,0.00036297,2]
[310221748,1704402717504,-150.0,0.000363,25]
[310221749,1704402717515,-3783.23582578,0.000363,2]
[310221750,1704402717530,-336.02902676,0.000363,2]
[310221751,1704402717839,-496.31306596,0.00022899,2]
[310221752,1704402717849,-695.54363404,0.00022899,2]
[310221753,1704402717861,-279.85573529,0.00022899,2]
[310221754,1704402717871,-1200.49701329,0.000229,6]
[310221755,1704402717880,-15692.97025861,0.00032875,4]
[310221756,1704402717891,-697.426907,0.00032875,4]
[310221757,1704402717900,-440.1334523,0.00032875,4]
[310221758,1704402717909,-506.92135085,0.00032876,2]
[310221759,1704402717920,-500.0,0.00032876,2]
[310221760,1704402717929,-500.0,0.00032876,2]
[310221761,1704402717938,-500.0,0.00032876,2]
[310221762,1704402717946,-500.0,0.00032876,2]
[310221763,1704402717955,-500.0,0.00032876,2]
[310221764,1704402717964,-500.0,0.0003315,2]
[310221765,1704402717973,-500.0,0.0003315,2]
[310221766,1704402717982,-500.0,0.0003315,2]
[310221767,1704402717992,-500.0,0.0003315,2]
[310221768,1704402718003,-500.0,0.00033424,2]
[310221769,1704402718012,-500.0,0.00033424,2]
[310221770,1704402718022,-500.0,0.00033424,2]
[310221771,1704402718031,-500.0,0.00033424,2]
[310221772,1704402718041,-500.0,0.00033698,2]
[310221773,1704402718050,-314.9,0.00033698,2]
[310221774,1704402718060,-500.0,0.00033972,2]
[310221775,1704402718069,-500.0,0.00034246,2]
[310221776,1704402718257,-500.0,0.0003452,2]
[310221777,1704402718267,-157.47517805,0.000349,2]
[310221778,1704402718277,-824.53397716,0.000363,2]
[310221779,1704402718293,-56.2011703,0.000363,2]
[310221780,1704402718302,-5000.0,0.000363,2]
[310221781,1704402718311,-224.3157471,0.00036321,14]
[310221782,1704402718320,-5000.0,0.00036325,2]
[310221783,1704402718329,-5000.0,0.00036325,2]
[310221784,1704402718338,-152.79793013,0.00036336,14]
[310221785,1704402718348,-224.3157471,0.00036344,14]
[310221786,1704402718357,-5000.0,0.0003635,2]
[310221787,1704402718366,-5000.0,0.0003635,2]
[310221788,1704402718375,-191.28567206,0.00036352,14]
[310221789,1704402718385,-5000.0,0.00036375,2]
[310221790,1704402718394,-5000.0,0.00036375,2]
[310221791,1704402718404,-151.765019,0.00036376,14]
[310221792,1704402718414,-5000.0,0.000364,2]
[310221793,1704402718423,-5000.0,0.000364,2]
[310221794,1704402718433,-5000.0,0.00036425,2]
[310221795,1704402718442,-5000.0,0.00036425,2]
[310221796,1704402718452,-152.79793013,0.00036435,14]
[310221797,1704402718462,-150.0,0.00036437,2]
[310221798,1704402718471,-500.0,0.00036438,2]
[310221799,1704402718481,-500.0,0.00036438,2]
[310221800,1704402718490,-560.07395121,0.00036438,2]
[310221801,1704402718502,-554.75,0.00036438,2]
[310221802,1704402718513,-500.0,0.00036438,2]
[310221803,1704402718524,-500.0,0.00036438,2]
[310221804,1704402718534,-500.0,0.00036438,2]
[310221805,1704402718543,-500.0,0.00036438,2]
[310221806,1704402718553,-500.0,0.00036438,2]
[310221807,1704402718563,-500.0,0.00036438,2]
[310221808,1704402718572,-500.0,0.00036438,2]
[310221809,1704402718582,-500.0,0.00036438,2]
[310221810,1704402718591,-500.0,0.00036438,2]
[310221811,1704402718601,-500.0,0.00036438,2]
[310221812,1704402718610,-284.44,0.00036438,2]
[310221813,1704402718619,-500.0,0.00036438,2]
[310221814,1704402718629,-500.0,0.00036438,2]
[310221815,1704402718638,-500.0,0.00036438,2]
[310221816,1704402718648,-1160.79,0.00036438,2]
[310221817,1704402718658,-500.0,0.00036438,2]
[310221818,1704402718668,-500.0,0.00036438,2]
[310221819,1704402718677,-738.09,0.00036438,2]
[310221820,1704402718687,-500.0,0.00036438,2]
[310221821,1704402718696,-500.0,0.00036438,2]
[310221822,1704402718705,-500.0,0.00036438,2]
[310221823,1704402718715,-807.57,0.00036438,2]
[310221824,1704402718724,-500.0,0.00036438,2]
[310221825,1704402718734,-500.0,0.00036438,2]
[310221826,1704402718743,-500.0,0.00036438,2]
[310221827,1704402718754,-500.0,0.00036438,2]
[310221828,1704402718764,-527.72,0.00036438,2]
[310221829,1704402718774,-687.6,0.00036438,2]
[310221830,1704402718784,-500.0,0.00036438,2]
[310221831,1704402718793,-500.0,0.00036438,2]
[310221832,1704402718803,-500.0,0.00036438,2]
[310221833,1704402718812,-500.0,0.00036438,2]
[310221834,1704402718822,-500.0,0.00036438,2]
[310221835,1704402718831,-460.60196657,0.00036438,2]
[310221836,1704402718840,-500.0,0.00036438,2]
[310221837,1704402718849,-500.0,0.00036438,2]
[310221838,1704402718858,-500.0,0.00036438,2]
[310221839,1704402718867,-500.0,0.00036438,2]
[310221840,1704402718877,-602.44,0.00036438,2]
[310221841,1704402718886,-507.85468848,0.00036438,2]
[310221842,1704402718895,-660.7,0.00036438,2]
[310221843,1704402718905,-722.69,0.00036438,2]
[310221844,1704402718914,-598.95,0.00036438,2]
[310221845,1704402718925,-500.0,0.00036438,2]
[310221846,1704402718934,-541.66,0.00036438,2]
[310221847,1704402718943,-500.0,0.00036438,2]
[310221848,1704402718952,-500.0,0.00036438,2]
[310221849,1704402718962,-505.83,0.00036438,2]
[310221850,1704402718972,-386.50435477,0.00036438,2]
[310221851,1704402718981,-500.0,0.00036438,2]
[310221852,1704402718990,-500.0,0.00036438,2]
[310221853,1704402719002,-500.0,0.00036438,2]
[310221854,1704402719013,-500.0,0.00036438,2]
[310221855,1704402719024,-500.0,0.00036438,2]
[310221856,1704402719034,-500.0,0.00036438,2]
[310221857,1704402719045,-718.72,0.00036438,2]
[310221858,1704402719055,-680.79,0.00036438,2]
[310221859,1704402719064,-500.0,0.00036438,2]
[310221860,1704402719073,-500.0,0.00036438,2]
[310221861,1704402719082,-1621.27,0.00036438,2]
[310221862,1704402719091,-500.0,0.00036438,2]
[310221863,1704402719100,-500.0,0.00036438,2]
[310221864,1704402719110,-500.0,0.00036438,2]
[310221865,1704402719120,-738.09,0.00036438,2]
[310221866,1704402719130,-519.11,0.00036438,2]
[310221867,1704402719139,-754.73,0.00036438,2]
[310221868,1704402719148,-578.29,0.00036438,2]
[310221869,1704402719157,-500.0,0.00036438,2]
[310221870,1704402719167,-500.0,0.00036438,2]
[310221871,1704402719177,-500.0,0.00036438,2]
[310221872,1704402719186,-500.0,0.00036438,2]
[310221873,1704402719195,-947.06,0.00036438,2]
[310221874,1704402719205,-1076.04,0.00036438,2]
[310221875,1704402719215,-500.0,0.00036438,2]
[310221876,1704402719224,-541.45,0.00036438,2]
[310221877,1704402719234,-519.94,0.00036438,2]
[310221878,1704402719244,-500.0,0.00036438,2]
[310221879,1704402719254,-570.54,0.00036438,2]
[310221880,1704402719262,-596.45,0.00036438,2]
[310221881,1704402719272,-917.54,0.00036438,2]
[310221882,1704402719281,-639.13,0.00036438,2]
[310221883,1704402719290,-500.0,0.00036438,2]
[310221884,1704402719300,-500.0,0.00036438,2]
[310221885,1704402719309,-642.46,0.00036438,2]
[310221886,1704402719319,-774.28,0.00036438,2]
[310221887,1704402719328,-500.0,0.00036438,2]
[310221888,1704402719337,-665.84,0.00036438,2]
[310221889,1704402719347,-500.0,0.00036438,2]
[310221890,1704402719356,-500.0,0.00036438,2]
[310221891,1704402719366,-500.0,0.00036438,2]
[310221892,1704402719375,-500.0,0.00036438,2]
[310221893,1704402719385,-500.0,0.00036438,2]
[310221894,1704402719395,-500.0,0.00036438,2]
[310221895,1704402719404,-564.52,0.00036438,2]
[310221896,1704402719419,-520.83,0.00036438,2]
[310221897,1704402719430,-1863.96,0.00036438,2]
[310221898,1704402719440,-500.0,0.00036438,2]
[310221899,1704402719450,-533.03,0.00036438,2]
[310221900,1704402719460,-1044.47,0.00036438,2]
[310221901,1704402719469,-531.47,0.00036438,2]
[310221902,1704402719479,-564.43,0.00036438,2]
[310221903,1704402719488,-1039.05,0.00036438,2]
[310221904,1704402719498,-791.55,0.00036438,2]
[310221905,1704402719508,-1245.41,0.00036438,2]
[310221906,1704402719518,-757.45,0.00036438,2]
[310221907,1704402719528,-521.07,0.00036438,2]
[310221908,1704402719538,-162.01,0.00036438,2]
[310221909,1704402719548,-663.54,0.00036438,2]
[310221910,1704402719557,-988.41,0.00036438,2]
[310221911,1704402719566,-1253.45,0.00036438,2]
[310221912,1704402719576,-623.24,0.00036438,2]
[310221913,1704402719585,-1071.01,0.00036438,2]
[310221914,1704402719595,-500.0,0.00036438,2]
[310221915,1704402719605,-1080.17,0.00036438,2]
[310221916,1704402719624,-500.0,0.00036438,2]
[310221917,1704402719634,-500.0,0.00036438,2]
[310221918,1704402719643,-2123.54,0.00036438,2]
[310221919,1704402719652,-500.0,0.00036438,2]
[310221920,1704402719662,-500.0,0.00036438,2]
[310221921,1704402719672,-500.0,0.00036438,2]
[310221922,1704402719681,-500.0,0.00036438,2]
[310221923,1704402719691,-1276.68,0.00036438,2]
[310221924,1704402719700,-500.0,0.00036438,2]
[310221925,1704402719709,-500.0,0.00036438,2]
[310221926,1704402719718,-500.0,0.00036438,2]
[310221927,1704402719728,-500.0,0.00036438,2]
[310221928,1704402719738,-500.0,0.00036438,2]
[310221929,1704402719749,-500.0,0.00036438,2]
[310221930,1704402719758,-500.0,0.00036438,2]
[310221931,1704402719769,-500.0,0.00036438,2]
[310221932,1704402719778,-2290.92,0.00036438,2]
[310221933,1704402719788,-5464.43,0.00036438,2]
[310221934,1704402719797,-1286.86,0.00036438,2]
[310221935,1704402719806,-543.96,0.00036438,2]
[310221936,1704402719816,-623.16,0.00036438,2]
[310221937,1704402719825,-500.0,0.00036438,2]
[310221938,1704402719835,-1530.15,0.00036438,2]
[310221939,1704402719844,-2181.99,0.00036438,2]
[310221940,1704402719853,-500.0,0.00036438,2]
[310221941,1704402719862,-3262.68,0.00036438,2]
[310221942,1704402719871,-1391.97,0.00036438,2]
[310221943,1704402719879,-756.79,0.00036438,2]
[310221944,1704402719888,-618.7,0.00036438,2]
[310221945,1704402719898,-1812.71,0.00036438,2]
[310221946,1704402719908,-500.0,0.00036438,2]
[310221947,1704402719917,-500.0,0.00036438,2]
[310221948,1704402719926,-500.0,0.00036438,2]
[310221949,1704402719935,-927.7,0.00036438,2]
[310221950,1704402719944,-709.7,0.00036438,2]
[310221951,1704402719953,-500.0,0.00036438,2]
[310221952,1704402719963,-1742.56,0.00036438,2]
[310221953,1704402719972,-500.0,0.00036438,2]
[310221954,1704402719981,-500.0,0.00036438,2]
[310221955,1704402719990,-500.0,0.00036438,2]
[310221956,1704402720001,-910.81,0.00036438,2]
[310221957,1704402720010,-500.0,0.00036438,2]
[310221958,1704402720019,-552.04,0.00036438,2]
[310221959,1704402720029,-500.0,0.00036438,2]
[310221960,1704402720038,-500.0,0.00036438,2]
[310221961,1704402720048,-1009.55,0.00036438,2]
[310221962,1704402720057,-500.0,0.00036438,2]
[310221963,1704402720067,-1739.77,0.00036438,2]
[310221964,1704402720077,-500.0,0.00036438,2]
[310221965,1704402720087,-500.0,0.00036438,2]
[310221966,1704402720096,-500.0,0.00036438,2]
[310221967,1704402720106,-540.46783233,0.00036438,2]
[310221968,1704402720115,-500.0,0.00036438,2]
[310221969,1704402720124,-1282.1,0.00036438,2]
[310221970,1704402720134,-6408.05,0.00036438,2]
[310221971,1704402720143,-500.0,0.00036438,2]
[310221972,1704402720153,-2129.19,0.00036438,2]
[310221973,1704402720162,-1154.96,0.00036438,2]
[310221974,1704402720171,-1729.84,0.00036438,2]
[310221975,1704402720180,-500.0,0.00036438,2]
[310221976,1704402720190,-500.0,0.00036438,2]
[310221977,1704402720199,-500.0,0.00036438,2]
[310221978,1704402720208,-913.73,0.00036438,2]
[310221979,1704402720217,-500.0,0.00036438,2]
[310221980,1704402720226,-500.0,0.00036438,2]
[310221981,1704402720235,-4842.28,0.00036438,2]
[310221982,1704402720247,-2264.53,0.00036438,2]
[310221983,1704402720256,-222.14556446,0.00036438,2]
[310221984,1704402720265,-500.0,0.00036438,2]
[310221985,1704402720274,-500.0,0.00036438,2]
[310221986,1704402720284,-2281.55,0.00036438,2]
[310221987,1704402720294,-500.0,0.00036438,2]
[310221988,1704402720303,-500.0,0.00036438,2]
[310221989,1704402720313,-500.0,0.00036438,2]
[310221990,1704402720322,-435.9,0.00036438,2]
[310221991,1704402720332,-500.0,0.00036438,2]
[310221992,1704402720342,-500.0,0.00036438,2]
[310221993,1704402720352,-500.0,0.00036438,2]
[310221994,1704402720361,-539.42,0.00036438,2]
[310221995,1704402720370,-983.89,0.00036438,2]
[310221996,1704402720379,-500.0,0.00036438,2]
[310221997,1704402720389,-500.0,0.00036438,2]
[310221998,1704402720399,-500.0,0.00036438,2]
[310221999,1704402720409,-500.0,0.00036438,2]
[310222000,1704402720419,-1154.67,0.00036438,2]
[310222001,1704402720429,-599.93,0.00036438,2]
[310222002,1704402720438,-616.54,0.00036438,2]
[310222003,1704402720447,-1525.72,0.00036438,2]
[310222004,1704402720456,-613.63,0.00036438,2]
[310222005,1704402720465,-637.93,0.00036438,2]
[310222006,1704402720475,-500.0,0.00036438,2]
[310222007,1704402720484,-500.0,0.00036438,2]
[310222008,1704402720493,-878.05,0.00036438,2]
[310222009,1704402720507,-500.0,0.00036438,2]
[310222010,1704402720517,-902.92,0.00036438,2]
[310222011,1704402720527,-275.64563146,0.00036438,2]
[310222012,1704402720536,-500.0,0.00036438,2]
[310222013,1704402720546,-500.0,0.00036438,2]
[310222014,1704402720555,-589.16,0.00036438,2]
[310222015,1704402720565,-500.0,0.00036438,2]
[310222016,1704402720575,-500.0,0.00036438,2]
[310222017,1704402720584,-263.49,0.00036438,2]
[310222018,1704402720594,-500.0,0.00036438,2]
[310222019,1704402720604,-984.56,0.00036438,2]
[310222020,1704402720614,-500.0,0.00036438,2]
[310222021,1704402720623,-563.07,0.00036438,2]
[310222022,1704402720633,-500.0,0.00036438,2]
[310222023,1704402720641,-2695.69,0.00036438,2]
[310222024,1704402720652,-786.61,0.00036438,2]
[310222025,1704402720662,-1449.26,0.00036438,2]
[310222026,1704402720671,-6403.69,0.00036438,2]
[310222027,1704402720680,-565.56,0.00036438,2]
[310222028,1704402720690,-573.87,0.00036438,2]
[310222029,1704402720699,-577.48,0.00036438,2]
[310222030,1704402720709,-500.0,0.00036438,2]
[310222031,1704402720719,-750.62,0.00036438,2]
[310222032,1704402720729,-1503.12,0.00036438,2]
[310222033,1704402720739,-500.0,0.00036438,2]
[310222034,1704402720750,-500.0,0.00036438,2]
[310222035,1704402720759,-515.26,0.00036438,2]
[310222036,1704402720769,-500.0,0.00036438,2]
[310222037,1704402720778,-500.0,0.00036438,2]
[310222038,1704402720788,-500.0,0.00036438,2]
[310222039,1704402720797,-1352.57,0.00036438,2]
[310222040,1704402720806,-500.0,0.00036438,2]
[310222041,1704402720816,-4498.58,0.00036438,2]
[310222042,1704402720826,-1460.37,0.00036438,2]
[310222043,1704402720836,-647.5,0.00036438,2]
[310222044,1704402720846,-500.0,0.00036438,2]
[310222045,1704402720855,-500.0,0.00036438,2]
[310222046,1704402720864,-895.41,0.00036438,2]
[310222047,1704402720873,-500.0,0.00036438,2]
[310222048,1704402720886,-500.0,0.00036438,2]
[310222049,1704402720895,-500.0,0.00036438,2]
[310222050,1704402720904,-500.0,0.00036438,2]
[310222051,1704402720914,-500.0,0.00036438,2]
[310222052,1704402720923,-500.0,0.00036438,2]
[310222053,1704402720932,-761.85,0.00036438,2]
[310222054,1704402720941,-500.0,0.00036438,2]
[310222055,1704402720951,-500.0,0.00036438,2]
[310222056,1704402720960,-500.0,0.00036438,2]
[310222057,1704402720969,-2111.24,0.00036438,2]
[310222058,1704402720978,-500.0,0.00036438,2]
[310222059,1704402720988,-1731.46,0.00036438,2]
[310222060,1704402720998,-387.86,0.00036438,2]
[310222061,1704402721007,-928.81,0.00036438,2]
[310222062,1704402721016,-1937.57,0.00036438,2]
[310222063,1704402721025,-1123.24,0.00036438,2]
[310222064,1704402721035,-550.84,0.00036438,2]
[310222065,1704402721044,-500.0,0.00036438,2]
[310222066,1704402721054,-500.0,0.00036438,2]
[310222067,1704402721063,-500.0,0.00036438,2]
[310222068,1704402721073,-504.38,0.00036438,2]
[310222069,1704402721084,-1072.15,0.00036438,2]
[310222070,1704402721093,-729.82,0.00036438,2]
[310222071,1704402721102,-500.0,0.00036438,2]
[310222072,1704402721112,-500.0,0.00036438,2]
[310222073,1704402721122,-2257.92,0.00036438,2]
[310222074,1704402721131,-500.0,0.00036438,2]
[310222075,1704402721142,-1167.4,0.00036438,2]
[310222076,1704402721152,-831.43,0.00036438,2]
[310222077,1704402721162,-1414.25,0.00036438,2]
[310222078,1704402721171,-1040.38,0.00036438,2]
[310222079,1704402721180,-500.0,0.00036438,2]
[310222080,1704402721190,-500.0,0.00036438,2]
[310222081,1704402721199,-828.1,0.00036438,2]
[310222082,1704402721211,-500.0,0.00036438,2]
[310222083,1704402721221,-500.0,0.00036438,2]
[310222084,1704402721230,-500.0,0.00036438,2]
[310222085,1704402721239,-500.0,0.00036438,2]
[310222086,1704402721249,-500.0,0.00036438,2]
[310222087,1704402721259,-678.15,0.00036438,2]
[310222088,1704402721269,-500.0,0.00036438,2]
[310222089,1704402721279,-500.0,0.00036438,2]
[310222090,1704402721288,-500.0,0.00036438,2]
[310222091,1704402721297,-1448.36,0.00036438,2]
[310222092,1704402721306,-1823.61,0.00036438,2]
[310222093,1704402721316,-159.57499855,0.00036442,14]
[310222094,1704402721325,-151.0,0.00036446,2]
[310222095,1704402721334,-5000.0,0.0003645,2]
[310222096,1704402721343,-5000.0,0.0003645,2]
[310222097,1704402721352,-224.3157471,0.00036452,14]
[310222098,1704402721363,-150.0,0.00036473,2]
[310222099,1704402721372,-5000.0,0.00036475,2]
[310222100,1704402721381,-5000.0,0.00036475,2]
[310222101,1704402721390,-5000.0,0.000365,2]
[310222102,1704402721399,-5000.0,0.000365,2]
[310222103,1704402721410,-191.28567206,0.00036515,14]
[310222104,1704402721422,-5000.0,0.00036525,2]
[310222105,1704402721431,-5000.0,0.00036525,2]
[310222106,1704402721441,-153.84,0.0003653,2]
[310222107,1704402721450,-5000.0,0.0003655,2]
[310222108,1704402721461,-5000.0,0.0003655,2]
[310222109,1704402721470,-150.0,0.00036554,2]
[310222110,1704402721479,-5000.0,0.00036575,2]
[310222111,1704402721488,-5000.0,0.00036575,2]
[310222112,1704402721499,-500.0,0.00036589,7]
[310222113,1704402721509,-500.0,0.00036589,7]
[310222114,1704402721670,-688.55,0.00036589,7]
[310222115,1704402721680,-4999.99,0.000366,2]
[310222116,1704402721690,-5000.0,0.000366,2]
[310222117,1704402721699,-191.28567206,0.00036601,14]
[310222118,1704402721708,-220.16,0.00036613,15]
[310222119,1704402721717,-11737.50654805,0.00036625,6]
[310222120,1704402721727,-7929.30276284,0.00036625,6]
[310222121,1704402721736,-5000.0,0.00036625,2]
[310222122,1704402721746,-500.0,0.00036649,2]
[310222123,1704402721755,-5000.0,0.0003665,2]
[310222124,1704402721766,-213.0,0.00036666,9]
[310222125,1704402721776,-985.98,0.00036675,2]
[310222126,1704402721785,-4569.84,0.000367,7]
[310222127,1704402721794,-681.6710574,0.000367,2]
[310222128,1704402721803,-1998.88,0.000367,2]
[310222129,1704402721814,-499.088804,0.000367,2]
[310222130,1704402721824,-500.0,0.00036712,2]
[310222131,1704402721833,-500.0,0.00036712,2]
[310222132,1704402721843,-554.75,0.00036712,2]
[310222133,1704402721854,-500.0,0.00036712,2]
[310222134,1704402721864,-500.0,0.00036712,2]
[310222135,1704402721874,-500.0,0.00036712,2]
[310222136,1704402721883,-500.0,0.00036712,2]
[310222137,1704402721892,-500.0,0.00036712,2]
[310222138,1704402721900,-500.0,0.00036712,2]
[310222139,1704402721909,-500.0,0.00036712,2]
[310222140,1704402721918,-500.0,0.00036712,2]
[310222141,1704402721927,-500.0,0.00036712,2]
[310222142,1704402721936,-500.0,0.00036712,2]
[310222143,1704402721945,-500.0,0.00036712,2]
[310222144,1704402721954,-500.0,0.00036712,2]
[310222145,1704402721963,-1160.79,0.00036712,2]
[310222146,1704402721972,-500.0,0.00036712,2]
[310222147,1704402721981,-738.09,0.00036712,2]
[310222148,1704402721991,-807.57,0.00036712,2]
[310222149,1704402722001,-500.0,0.00036712,2]
[310222150,1704402722010,-500.0,0.00036712,2]
[310222151,1704402722019,-500.0,0.00036712,2]
[310222153,1704402722027,-527.72,0.00036712,2]
[310222154,1704402722037,-687.6,0.00036712,2]
[310222155,1704402722046,-500.0,0.00036712,2]
[310222156,1704402722055,-500.0,0.00036712,2]
[310222157,1704402722065,-500.0,0.00036712,2]
[310222158,1704402722074,-500.0,0.00036712,2]
[310222160,1704402722083,-500.0,0.00036712,2]
[310222161,1704402722091,-621.2,0.00036712,2]
[310222162,1704402722100,-500.0,0.00036712,2]
[310222163,1704402722109,-500.0,0.00036712,2]
[310222164,1704402722118,-500.0,0.00036712,2]
[310222165,1704402722127,-602.44,0.00036712,2]
[310222166,1704402722136,-660.7,0.00036712,2]
[310222167,1704402722146,-722.69,0.00036712,2]
[310222168,1704402722156,-598.95,0.00036712,2]
[310222169,1704402722165,-500.0,0.00036712,2]
[310222170,1704402722174,-541.66,0.00036712,2]
[310222171,1704402722184,-500.0,0.00036712,2]
[310222172,1704402722193,-500.0,0.00036712,2]
[310222173,1704402722203,-505.83,0.00036712,2]
[310222174,1704402722213,-500.0,0.00036712,2]
[310222175,1704402722222,-500.0,0.00036712,2]
[310222176,1704402722231,-248.09519432,0.00036712,2]
[310222177,1704402722241,-500.0,0.00036712,2]
[310222178,1704402722252,-618.68,0.00036712,2]
[310222179,1704402722261,-500.0,0.00036712,2]
[310222180,1704402722271,-718.72,0.00036712,2]
[310222181,1704402722281,-680.79,0.00036712,2]
[310222182,1704402722291,-500.0,0.00036712,2]
[310222183,1704402722301,-500.0,0.00036712,2]
[310222184,1704402722310,-1621.27,0.00036712,2]
[310222185,1704402722320,-500.0,0.00036712,2]
[310222186,1704402722329,-500.0,0.00036712,2]
[310222187,1704402722338,-500.0,0.00036712,2]
[310222188,1704402722347,-738.09,0.00036712,2]
[310222189,1704402722357,-519.11,0.00036712,2]
[310222190,1704402722366,-754.73,0.00036712,2]
[310222191,1704402722375,-578.29,0.00036712,2]
[310222192,1704402722385,-500.0,0.00036712,2]
[310222193,1704402722395,-500.0,0.00036712,2]
[310222194,1704402722404,-500.0,0.00036712,2]
[310222195,1704402722414,-500.0,0.00036712,2]
[310222196,1704402722423,-947.06,0.00036712,2]
[310222197,1704402722433,-1076.04,0.00036712,2]
[310222198,1704402722443,-500.0,0.00036712,2]
[310222199,1704402722452,-541.45,0.00036712,2]
[310222200,1704402722462,-519.94,0.00036712,2]
[310222201,1704402722472,-313.03403978,0.00036712,2]
[310222202,1704402722481,-596.45,0.00036712,2]
[310222203,1704402722490,-570.54,0.00036712,2]
[310222204,1704402722501,-917.54,0.00036712,2]
[310222205,1704402722510,-639.13,0.00036712,2]
[310222206,1704402722520,-500.0,0.00036712,2]
[310222207,1704402722529,-500.0,0.00036712,2]
[310222208,1704402722539,-642.46,0.00036712,2]
[310222209,1704402722550,-774.28,0.00036712,2]
[310222210,1704402722560,-500.0,0.00036712,2]
[310222211,1704402722569,-665.84,0.00036712,2]
[310222212,1704402722579,-500.0,0.00036712,2]
[310222213,1704402722588,-361.23082655,0.00036712,2]
[310222214,1704402722598,-500.0,0.00036712,2]
[310222215,1704402722608,-500.0,0.00036712,2]
[310222216,1704402722617,-500.0,0.00036712,2]
[310222217,1704402722627,-500.0,0.00036712,2]
[310222218,1704402722636,-564.52,0.00036712,2]
[310222219,1704402722646,-520.83,0.00036712,2]
[310222220,1704402722656,-1863.96,0.00036712,2]
[310222221,1704402722665,-500.0,0.00036712,2]
[310222222,1704402722675,-533.03,0.00036712,2]
[310222223,1704402722685,-1044.47,0.00036712,2]
[310222224,1704402722694,-531.47,0.00036712,2]
[310222225,1704402722704,-564.43,0.00036712,2]
[310222226,1704402722713,-1039.05,0.00036712,2]
[310222227,1704402722723,-791.55,0.00036712,2]
[310222228,1704402722732,-1245.41,0.00036712,2]
[310222229,1704402722741,-521.07,0.00036712,2]
[310222230,1704402722750,-757.45,0.00036712,2]
[310222231,1704402722760,-162.01,0.00036712,2]
[310222232,1704402722770,-663.54,0.00036712,2]
[310222233,1704402722780,-988.41,0.00036712,2]
[310222234,1704402722789,-1253.45,0.00036712,2]